bitfinex/quotes_ETHUSD_20250329
["timestamp","ask_amount","ask_price","bid_price","bid_amount"]
[1743264437617,6.8829,1845.1,1844.8,5.4204]
[1743264437785,6.8829,1845.1,1844.9,5.42015]
[1743264438111,2.40518582,1845.0,1844.9,5.42015]
[1743264441081,0.12871594,1845.0,1844.9,5.42015]
[1743264441284,0.12871594,1845.0,1844.9,7.36410881]
[1743264441512,0.12871594,1845.0,1844.9,7.309905]
[1743264441699,6.12,1845.3,1845.2,5.41946]
[1743264441901,11.39646988,1845.3,1845.2,5.41946]
[1743264442813,9.12,1845.3,1845.2,5.41946]
[1743264443015,9.12,1845.3,1845.2,7.309072]
[1743264444017,9.12,1845.3,1845.2,6.22516]
[1743264445232,3.0,1845.3,1845.2,5.41946]
[1743264445415,3.0,1845.3,1845.2,6.18606]
[1743264445789,6.12,1845.6,1845.4,5.41887]
[1743264445992,9.15796988,1845.7,1845.6,5.41829]
[1743264446202,12.15796988,1845.7,1845.6,5.41829]
[1743264450416,3.0,1845.6,1845.5,5.41857]
[1743264455263,3.0,1845.6,1845.3,5.41917]
[1743264455401,2.27646988,1845.5,1845.2,5.41921]
[1743264455724,5.27646988,1845.3,1845.2,5.41921]
[1743264456929,11.39646988,1845.3,1845.2,5.41921]
[1743264458926,11.39646988,1845.3,1845.1,5.41974]
[1743264459141,3.0,1845.2,1845.1,10.83936]
[1743264460948,3.0,1845.2,1845.1,5.41962]
[1743264462757,9.12,1845.2,1845.1,5.41962]
[1743264464344,0.7675,1845.1,1844.8,5.42036]
[1743264464542,5.27646988,1845.0,1844.8,5.42036]
[1743264465117,5.27646988,1845.0,1844.9,5.42034]
[1743264466925,5.27646988,1845.0,1844.8,5.42036]
[1743264467250,5.27646988,1845.0,1844.8,10.84081]
[1743264467920,5.27646988,1845.0,1844.8,5.42036]
[1743264468127,5.27646988,1845.0,1844.8,10.8408]
[1743264468522,3.0,1844.8,1844.6,5.42098]
[1743264468727,11.39646988,1844.8,1844.7,5.42091]
[1743264469246,9.12,1844.8,1844.7,5.42091]
[1743264472019,9.12,1844.8,1844.6,5.42098]
[1743264472219,2.27646988,1844.7,1844.6,5.42122]
[1743264473420,2.27646988,1844.7,1844.5,5.42133]
[1743264473745,2.27646988,1844.7,1844.5,5.42149]
[1743264474355,2.27646988,1844.7,1844.5,10.84281]
[1743264474554,8.39646988,1844.7,1844.5,10.84281]
[1743264474747,8.39646988,1844.7,1844.5,5.42132]
[1743264478360,8.39646988,1844.7,1844.5,10.84266]
[1743264478551,9.12,1844.7,1844.6,6.19852]
[1743264478739,9.12,1844.7,1844.6,7.360504]
[1743264478943,9.12,1844.7,1844.6,6.19852]
[1743264480358,3.0,1844.7,1844.6,6.19852]
[1743264482232,6.12,1845.3,1845.2,5.41946]
[1743264482431,6.12,1845.3,1844.8,0.7773]
[1743264482432,8.8100878,1845.4,1845.1,5.41965]
[1743264482773,3.0,1845.3,1845.1,5.41965]
[1743264482960,3.0,1845.3,1845.2,5.41946]
[1743264483360,8.39646988,1845.4,1845.2,5.41946]
[1743264484081,3.0,1845.3,1845.2,5.41946]
[1743264484559,3.0,1845.3,1845.1,10.8392]
[1743264484735,3.0,1845.3,1845.2,6.17886]
[1743264485276,3.0,1845.3,1845.1,10.83918]
[1743264485471,3.0,1845.3,1845.2,5.41946]
[1743264486260,9.12,1845.3,1845.2,5.41946]
[1743264487159,2.68818743,1845.5,1845.2,5.41946]
[1743264487160,6.12,1845.5,1845.4,5.41887]
[1743264487760,6.12,1845.5,1845.4,6.17827]
[1743264487970,6.12,1845.5,1845.4,11.37827]
[1743264488273,6.12,1846.0,1845.9,5.41741]
[1743264488644,3.0,1845.9,1845.8,5.4177]
[1743264488976,3.0,1845.9,1845.7,5.41786]
[1743264489186,3.0,1845.9,1845.7,10.83559]
[1743264489574,3.0,1845.9,1845.7,5.41779]
[1743264490394,3.0,1845.9,1845.7,10.83559]
[1743264490687,3.0,1845.9,1845.7,5.41779]
[1743264491944,3.0,1845.9,1845.5,5.41851]
[1743264491945,3.09006988,1845.8,1845.5,5.41851]
[1743264492254,3.0,1845.6,1845.5,5.41851]
[1743264492978,3.0,1845.6,1845.5,6.17791]
[1743264493887,3.0,1845.8,1845.7,5.41789]
[1743264494892,3.0,1845.8,1845.7,6.501508]
[1743264497285,6.12,1846.1,1845.9,5.41731]
[1743264497593,3.0,1846.2,1846.0,5.41699]
[1743264497742,5.27646988,1846.2,1846.0,5.41699]
[1743264497947,5.27646988,1846.2,1845.9,5.41726]
[1743264498148,2.27646988,1846.0,1845.9,5.41726]
[1743264499162,6.12,1847.0,1846.1,0.8045]
[1743264499379,0.7581,1847.1,1846.7,5.41489]
[1743264499380,6.8781,1847.1,1846.7,5.41489]
[1743264499562,3.0,1847.0,1846.7,5.41489]
[1743264500168,14.56849988,1847.1,1846.7,5.41489]
[1743264500550,9.15456988,1847.1,1846.7,5.41489]
[1743264500752,14.56845988,1847.1,1846.7,5.41489]
[1743264500951,3.0,1847.0,1846.7,5.41484]
[1743264501193,3.0,1847.0,1846.7,10.82976]
[1743264501696,9.15456988,1847.1,1846.8,5.41474]
[1743264502091,3.0,1847.0,1846.8,5.41474]
[1743264503077,3.0,1847.0,1846.5,0.8045]
[1743264503078,3.0,1846.8,1846.5,5.4154]
[1743264503261,3.0,1846.8,1846.6,5.41524]
[1743264503462,3.0,1846.8,1846.6,10.83048]
[1743264503656,3.0,1846.8,1846.6,5.41524]
[1743264504483,3.0,1846.8,1846.6,5.41517]
[1743264506755,6.12,1846.7,1846.5,5.4156]
[1743264506966,3.7581,1846.6,1846.3,5.41617]
[1743264507187,3.7581,1846.6,1846.2,5.41642]
[1743264507354,4.30810159,1846.6,1846.3,5.41622]
[1743264507556,3.7581,1846.6,1846.3,5.41622]
[1743264507989,3.7581,1846.6,1846.4,5.41594]
[1743264508357,3.7581,1846.6,1846.3,5.4161]
[1743264508587,3.7581,1846.6,1845.5,34.09942]
[1743264508588,3.0,1846.4,1846.1,5.41665]
[1743264508764,3.0,1846.4,1846.1,10.83326]
[1743264508959,3.0,1846.4,1846.1,5.41661]
[1743264509153,3.0,1846.4,1846.2,5.4165]
[1743264509360,3.0,1846.4,1846.1,5.41661]
[1743264509361,0.7581,1846.3,1846.1,5.41661]
[1743264509884,0.7581,1846.3,1846.2,5.41653]
[1743264510352,0.7581,1846.3,1846.1,5.41661]
[1743264511088,0.7581,1846.3,1846.1,10.83321]
[1743264511285,0.7581,1846.3,1846.2,5.41653]
[1743264512596,9.8781,1846.3,1846.2,5.41653]
[1743264514194,9.12,1846.3,1846.2,5.41653]
[1743264514385,9.12,1846.3,1846.2,6.499843]
[1743264515194,9.12,1846.3,1846.2,7.315543]
[1743264515398,3.0,1846.3,1846.2,7.315543]
[1743264516597,3.0,1846.3,1846.2,7.36970208]
[1743264517595,6.8772,1846.9,1846.7,5.41486]
[1743264517894,3.0,1846.8,1846.7,5.41486]
[1743264527383,6.12,1847.0,1846.9,5.41447]
[1743264527698,9.12,1847.0,1846.9,5.41447]
[1743264528507,6.12,1847.0,1846.9,5.41447]
[1743264528801,6.12,1847.4,1847.2,5.41341]
[1743264529376,3.0,1847.3,1847.2,5.41341]
[1743264530701,3.0,1847.3,1847.1,5.41388]
[1743264531303,3.0,1847.3,1847.2,5.41359]
[1743264533599,3.0,1847.3,1847.2,6.496325]
[1743264538185,6.12,1847.6,1847.5,6.22221]
[1743264538529,9.12,1847.6,1847.5,6.22221]
[1743264539601,6.12,1847.6,1847.5,6.22221]
[1743264539813,9.12,1847.6,1847.5,7.385721]
[1743264541886,3.0,1847.6,1847.5,7.385721]
[1743264542488,3.0,1847.6,1847.5,7.43984403]
[1743264542701,6.12,1847.9,1847.8,6.22134]
[1743264542894,6.12,1848.1,1848.0,5.41125]
[1743264543307,37.78,1848.2,1848.1,5.41096]
[1743264543692,9.12,1848.2,1848.1,5.41096]
[1743264544021,6.12,1848.2,1848.1,5.41096]
[1743264544317,9.22485094,1848.2,1848.1,5.41096]
[1743264544487,6.22485094,1848.2,1848.1,6.493181]
[1743264544691,9.22485094,1848.2,1848.1,6.493181]
[1743264545431,0.10485094,1848.2,1848.1,7.268181]
[1743264545582,6.12,1848.5,1848.1,7.268181]
[1743264545583,6.12,1848.5,1848.4,5.41008]
[1743264545783,0.10688387,1848.5,1848.4,5.41008]
[1743264546016,6.12,1848.7,1848.5,5.40956]
[1743264546222,3.1069672,1848.6,1848.5,5.40956]
[1743264547728,0.1069672,1848.6,1848.5,5.40956]
[1743264548235,3.10573838,1848.6,1848.5,5.40956]
[1743264552721,3.10573838,1848.6,1848.4,7.267115]
[1743264552920,6.15140826,1848.6,1848.2,5.41064]
[1743264553120,6.15140826,1848.6,1848.3,5.41022]
[1743264553688,6.12,1848.5,1848.2,5.41043]
[1743264554025,0.7692,1848.3,1848.1,5.41083]
[1743264554227,0.10647637,1848.2,1848.1,10.82157]
[1743264554588,0.10647637,1848.2,1848.1,5.41074]
[1743264555293,0.10647637,1848.2,1848.0,5.41122]
[1743264555489,5.38294625,1848.2,1847.9,5.41128]
[1743264555711,3.0,1847.9,1847.8,5.41178]
[1743264556117,3.10672245,1847.9,1847.8,5.41178]
[1743264556320,0.10672245,1847.9,1847.8,5.41178]
[1743264557899,3.0,1847.8,1847.7,5.41189]
[1743264558212,3.10665768,1847.8,1847.7,5.41189]
[1743264559409,3.10665768,1847.8,1847.7,7.01652]
[1743264560323,3.10665768,1847.8,1847.7,7.80512]
[1743264568163,3.10665768,1847.8,1847.7,7.01652]
[1743264568350,3.10665768,1847.8,1847.7,5.41189]
[1743264568929,5.38312756,1847.8,1847.7,5.41189]
[1743264569122,6.14192756,1847.8,1847.6,5.41241]
[1743264569321,6.14192756,1847.8,1847.6,10.8247]
[1743264569621,6.14192756,1847.8,1847.6,5.41229]
[1743264569818,6.14192756,1847.8,1847.7,5.41213]
[1743264570045,6.14192756,1847.8,1847.6,5.41229]
[1743264570835,6.14192756,1847.8,1847.6,10.82451]
[1743264571022,6.14192756,1847.8,1847.6,5.41222]
[1743264572423,6.14192756,1847.8,1847.6,10.82447]
[1743264573245,6.14192756,1847.8,1847.6,5.41222]
[1743264574324,12.26192756,1847.8,1847.6,5.41222]
[1743264574526,12.26192756,1847.8,1847.6,10.82446]
[1743264574957,12.26192756,1847.8,1847.6,5.41222]
[1743264575257,12.26192756,1847.8,1847.6,10.82453]
[1743264576054,12.26192756,1847.8,1847.6,5.41222]
[1743264576456,12.26192756,1847.8,1847.6,10.82448]
[1743264576653,12.26192756,1847.8,1847.5,5.41265]
[1743264576852,12.26192756,1847.8,1847.5,10.82516]
[1743264577157,9.98545768,1847.8,1847.6,5.41221]
[1743264577356,9.22665768,1847.8,1847.6,6.22081]
[1743264577656,9.22665768,1847.8,1847.7,5.41213]
[1743264577862,6.22665768,1847.8,1847.7,5.41213]
[1743264578351,6.12,1848.3,1848.2,5.41066]
[1743264578559,8.39646988,1848.4,1848.3,5.41037]
[1743264579058,6.12,1848.4,1848.3,5.41037]
[1743264579253,9.12,1848.4,1848.3,6.492473]
[1743264579560,6.12,1848.4,1848.3,6.492473]
[1743264580158,9.12,1848.4,1848.3,5.41037]
[1743264580466,3.8143,1848.3,1848.0,5.41099]
[1743264580761,2.27646988,1848.1,1848.0,5.41099]
[1743264583167,5.27646988,1848.1,1848.0,5.41099]
[1743264583764,3.0,1848.1,1848.0,5.41099]
[1743264588071,3.0,1848.1,1848.0,7.301842]
[1743264588975,5.27646988,1848.3,1848.2,5.41066]
[1743264593676,3.0,1848.3,1848.2,5.41066]
[1743264600591,5.27646988,1848.3,1848.2,5.41066]
[1743264601698,3.0,1848.3,1848.2,6.23806]
[1743264602063,3.0,1848.3,1848.2,5.41066]
[1743264605077,3.0,1848.3,1848.2,6.5469147]
[1743264605280,6.12,1848.4,1848.3,5.41037]
[1743264605802,6.12,1848.4,1848.3,6.19307]
[1743264606099,8.39646988,1848.8,1848.7,5.4092]
[1743264606398,6.12,1848.8,1848.7,6.1919]
[1743264606574,9.12,1848.8,1848.7,6.1919]
[1743264606984,2.27646988,1849.0,1848.7,6.1919]
[1743264606985,8.39646988,1849.0,1848.9,5.40862]
[1743264607196,8.39646988,1849.2,1849.0,5.40806]
[1743264607412,3.0,1849.1,1849.0,5.40806]
[1743264607613,6.12,1849.2,1849.1,5.40803]
[1743264608302,2.27646988,1849.4,1849.3,5.40745]
[1743264608882,5.27646988,1849.4,1849.3,5.40745]
[1743264609081,2.27646988,1849.4,1849.3,5.40745]
[1743264609491,5.27646988,1849.4,1849.3,5.40745]
[1743264609691,2.27646988,1849.4,1849.3,5.40745]
[1743264609886,2.27646988,1849.4,1849.2,5.40764]
[1743264610093,2.27646988,1849.4,1849.2,10.81516]
[1743264610408,0.10261984,1849.3,1849.2,10.81516]
[1743264610705,5.27646988,1849.4,1849.1,6.489589]
[1743264610869,2.27646988,1849.2,1849.1,5.40798]
[1743264611074,2.38332107,1849.2,1849.0,5.40815]
[1743264611274,2.38332107,1849.2,1849.1,5.40803]
[1743264613213,0.10685119,1849.2,1849.1,5.40803]
[1743264616310,3.0,1849.4,1849.3,5.40745]
[1743264616604,5.27646988,1849.4,1849.3,5.40745]
[1743264619515,3.0,1849.4,1849.3,5.40745]
[1743264619704,3.0,1849.4,1849.3,6.488962]
[1743264621316,3.10795441,1849.4,1849.3,6.488962]
[1743264622114,0.771,1849.3,1849.0,6.027255]
[1743264622413,2.27646988,1849.2,1849.0,11.435395]
[1743264622618,2.38449346,1849.2,1849.1,5.40803]
[1743264623613,2.38449346,1849.2,1849.0,6.027225]
[1743264623614,5.38449346,1849.2,1848.9,5.40841]
[1743264623805,5.38449346,1849.2,1849.1,5.40803]
[1743264624026,5.38449346,1849.2,1849.1,6.489663]
[1743264626816,0.10802358,1849.2,1849.1,6.489663]
[1743264626986,3.10802358,1849.2,1849.1,6.489663]
[1743264627414,3.10802358,1849.2,1849.1,7.36203906]
[1743264627415,0.10802358,1849.2,1849.1,7.36203906]
[1743264627619,0.10802358,1849.2,1849.1,6.489663]
[1743264627913,6.12,1849.3,1849.2,5.40774]
[1743264628123,9.12,1849.3,1849.2,7.4157803]
[1743264630600,6.12,1849.3,1849.2,7.4157803]
[1743264630804,6.12,1849.3,1849.2,7.46985084]
[1743264631207,6.12,1849.3,1849.2,7.4157803]
[1743264631737,6.12,1849.3,1849.2,7.46985086]
[1743264632520,6.12,1849.3,1849.2,7.4157803]
[1743264632928,3.0,1849.6,1849.5,5.40686]
[1743264634618,2.68713457,1849.8,1849.6,5.40638]
[1743264634619,5.27646988,1849.8,1849.6,5.40638]
[1743264634808,5.27646988,1849.8,1849.6,10.81284]
[1743264635012,5.27646988,1849.8,1849.7,5.40628]
[1743264636141,5.66449301,1849.8,1849.5,5.40684]
[1743264636705,5.66449301,1849.8,1849.6,5.40657]
[1743264637200,5.66449301,1849.8,1849.6,10.81314]
[1743264637534,5.66449301,1849.8,1849.6,5.40657]
[1743264638610,6.06291703,1849.8,1849.6,5.40657]
[1743264638812,12.18291703,1849.8,1849.6,5.40657]
[1743264639013,12.18291703,1849.8,1849.7,5.40628]
[1743264639213,11.78449301,1849.8,1849.7,5.40628]
[1743264639821,8.78449301,1849.8,1849.7,5.40628]
[1743264640129,0.38802313,1849.8,1849.7,5.40628]
[1743264640336,0.38802313,1849.8,1849.7,6.20798]
[1743264640502,0.05,1849.9,1849.8,5.40598]
[1743264647051,9.15782,1849.8,1849.5,5.40682]
[1743264647358,5.27646988,1849.7,1849.5,5.40682]
[1743264648740,5.27646988,1849.7,1849.6,5.40657]
[1743264650448,5.27646988,1849.7,1849.5,5.40682]
[1743264650943,5.27646988,1849.7,1849.5,10.81335]
[1743264651151,0.38782666,1849.6,1849.5,10.81335]
[1743264651355,5.27646988,1849.7,1849.5,10.81335]
[1743264651649,0.38759759,1849.6,1849.5,5.40666]
[1743264652022,5.27646988,1849.7,1849.6,5.40657]
[1743264652526,3.0,1849.7,1849.6,5.40657]
[1743264653848,3.0,1849.8,1849.7,5.40628]
[1743264654629,3.0,1849.8,1849.6,6.487893]
[1743264655029,5.27646988,1849.8,1849.6,6.487893]
[1743264655555,3.0,1849.8,1849.7,5.40628]
[1743264655856,3.0,1849.8,1849.6,6.487713]
[1743264656049,3.0,1849.8,1849.6,10.81276]
[1743264656430,3.0,1849.8,1849.7,5.40628]
[1743264658964,3.0,1849.8,1849.6,5.40637]
[1743264659754,3.0,1849.8,1849.7,5.40628]
[1743264660860,6.05786988,1849.8,1849.5,5.40676]
[1743264661034,6.05786988,1849.8,1849.5,5.40669]
[1743264661235,6.05786988,1849.8,1849.6,5.40655]
[1743264661830,6.05786988,1849.8,1849.5,5.40665]
[1743264662277,12.17786988,1849.8,1849.5,10.81331]
[1743264662566,9.12,1849.8,1849.7,5.40628]
[1743264664788,9.51794872,1849.8,1849.7,5.40628]
[1743264665271,9.12,1849.8,1849.7,5.40628]
[1743264666142,9.44544471,1849.8,1849.7,5.40628]
[1743264668051,0.32544471,1849.8,1849.7,6.48756]
[1743264668259,3.05,1849.9,1849.8,5.40598]
[1743264668882,0.05,1849.9,1849.8,5.40598]
[1743264677809,0.05,1849.9,1849.8,5.46003008]
[1743264680082,0.05,1849.9,1849.8,5.40598]
[1743264680301,0.05,1849.9,1849.8,6.675634]
[1743264681210,0.25525085,1849.9,1849.8,6.675634]
[1743264691250,0.25525085,1849.9,1849.8,6.7296846]
[1743264696233,0.25525085,1849.9,1849.8,6.675634]
[1743264704746,0.25525085,1849.9,1849.8,6.72968469]
[1743264704926,0.25525085,1849.9,1849.8,7.50948469]
[1743264705237,0.05,1849.9,1849.8,7.50948469]
[1743264705811,1e-05,1849.9,1849.8,8.05948469]
[1743264706036,1e-05,1849.9,1849.8,8.005434]
[1743264706610,1e-05,1849.9,1849.8,8.0594718]
[1743264707345,1e-05,1849.9,1849.8,8.005434]
[1743264710046,1e-05,1849.9,1849.8,8.41562072]
[1743264711822,1e-05,1849.9,1849.8,8.46965183]
[1743264712039,1e-05,1849.9,1849.8,9.571828]
[1743264712620,1e-05,1849.9,1849.8,9.51779689]
[1743264718035,1e-05,1849.9,1849.8,9.57182843]
[1743264718649,1e-05,1849.9,1849.8,9.51779689]
[1743264720373,1e-05,1849.9,1849.8,9.57182827]
[1743264720769,1e-05,1849.9,1849.8,9.51779689]
[1743264720940,1e-05,1849.9,1849.8,9.57182713]
[1743264721641,1e-05,1849.9,1849.8,18.28582713]
[1743264721876,1e-05,1849.9,1849.8,18.23179689]
[1743264724759,1e-05,1849.9,1849.8,23.40079689]
[1743264728380,1e-05,1849.9,1849.8,24.10775262]
[1743264728965,1e-05,1849.9,1849.8,24.8685198]
[1743264730351,1e-05,1849.9,1849.8,24.16156407]
[1743264731763,1e-05,1849.9,1849.8,23.40079689]
[1743264733492,1e-05,1849.9,1849.8,18.23179689]
[1743264733669,1e-05,1849.9,1849.8,17.68579689]
[1743264733870,1e-05,1849.9,1849.8,12.51779689]
[1743264734073,1e-05,1849.9,1849.8,17.68579689]
[1743264743699,0.79721,1849.9,1849.8,7.77781017]
[1743264743900,0.79721,1849.9,1849.8,10.57398]
[1743264744069,0.92982679,1849.9,1849.8,10.57398]
[1743264745289,3.92982679,1849.9,1849.7,5.40628]
[1743264745476,3.0,1849.7,1849.5,5.40662]
[1743264745679,6.06533369,1849.6,1849.5,5.40662]
[1743264745894,3.92698002,1849.6,1849.5,5.40662]
[1743264747398,0.92698002,1849.6,1849.5,5.46068547]
[1743264747703,0.92698002,1849.6,1849.5,5.40662]
[1743264748201,0.92698002,1849.6,1849.5,5.46067606]
[1743264748505,0.92698002,1849.6,1849.5,6.49339861]
[1743264749006,0.92698002,1849.6,1849.5,6.54745404]
[1743264749675,0.92698002,1849.6,1849.5,6.49339861]
[1743264749873,2e-08,1849.6,1849.5,7.0974552]
[1743264750107,0.79721,1849.9,1849.8,5.40598]
[1743264750274,0.79721,1849.9,1849.8,10.57498]
[1743264750570,0.79721,1849.9,1849.8,12.173096]
[1743264752309,0.79721,1849.9,1849.8,10.57498]
[1743264757406,1e-05,1849.9,1849.8,10.57498]
[1743264757716,0.11712718,1849.9,1849.8,10.57498]
[1743264757921,7.18e-06,1849.9,1849.8,11.88718]
[1743264758080,7.18e-06,1849.9,1849.8,13.616516]
[1743264758284,0.7907,1850.2,1850.1,5.40511]
[1743264758484,0.7907,1850.2,1850.1,5.45915081]
[1743264759621,0.7907,1850.2,1850.1,5.40511]
[1743264765733,0.89954456,1850.2,1850.1,5.40511]
[1743264766428,3.16767825,1850.2,1850.1,5.40511]
[1743264766634,2.37697825,1850.2,1850.1,5.40511]
[1743264766836,0.7786,1850.1,1850.0,5.40526]
[1743264767128,0.88737644,1850.1,1850.0,5.40526]
[1743264768232,0.88737644,1850.1,1850.0,5.45930974]
[1743264768802,0.88737644,1850.1,1850.0,5.40526]
[1743264769121,0.88737644,1850.1,1850.0,7.003154]
[1743264769921,0.7786,1850.1,1850.0,7.05719871]
[1743264770424,0.7786,1850.1,1850.0,7.003154]
[1743264774041,0.7786,1850.1,1850.0,5.40526]
[1743264775739,3.04673369,1850.1,1850.0,5.40526]
[1743264775905,5.26813369,1850.1,1850.0,5.40526]
[1743264776105,6.08713369,1850.1,1850.0,5.40526]
[1743264776735,0.819,1850.0,1849.9,5.40568]
[1743264777233,3.819,1850.0,1849.8,5.40595]
[1743264777420,6.08713369,1849.9,1849.8,5.40595]
[1743264778138,0.819,1849.8,1849.7,5.40623]
[1743264779331,3.0,1849.9,1849.8,5.40598]
[1743264781834,6.12,1850.4,1850.3,5.40452]
[1743264782034,0.39627686,1850.4,1850.3,5.40452]
[1743264782234,3.0,1850.3,1850.2,5.4048]
[1743264782423,0.819,1850.3,1850.2,5.4048]
[1743264785651,0.819,1850.3,1849.9,5.40557]
[1743264785652,3.0,1850.2,1849.9,5.40557]
[1743264785815,3.0,1850.2,1849.9,10.81105]
[1743264785816,2.26813369,1850.0,1849.9,10.81105]
[1743264786750,0.7689,1850.1,1850.0,5.4054]
[1743264788543,3.0,1850.2,1850.1,5.40511]
[1743264790473,5.26813369,1850.2,1850.1,5.40511]
[1743264790632,6.03703369,1850.2,1850.1,5.40511]
[1743264792959,3.0,1850.3,1850.2,5.40482]
[1743264794275,0.7689,1850.6,1850.4,5.40423]
[1743264795046,0.7689,1850.6,1850.5,5.40394]
[1743264795800,3.03703369,1850.6,1850.5,5.40394]
[1743264797950,6.12,1850.8,1850.7,5.40336]
[1743264797951,3.03703369,1850.8,1850.7,5.40336]
[1743264798144,5.26813369,1850.8,1850.7,5.40336]
[1743264799278,0.8189,1850.9,1850.8,5.40306]
[1743264799480,3.8189,1850.9,1850.8,5.40306]
[1743264799681,0.8189,1850.9,1850.8,5.40306]
[1743264802955,0.05,1850.9,1850.8,5.40306]
[1743264809494,0.05,1850.9,1850.8,6.20486]
[1743264809666,0.05,1850.9,1850.8,7.473751]
[1743264810266,0.05,1850.9,1850.8,7.5277727]
[1743264811862,0.05,1850.9,1850.8,7.473751]
[1743264814262,0.05,1850.9,1850.8,6.671951]
[1743264822990,1e-05,1850.9,1850.8,8.05507231]
[1743264826897,1e-05,1850.9,1850.8,11.001051]
[1743264827297,1e-05,1850.9,1850.8,10.451051]
[1743264827698,1e-05,1850.9,1850.8,12.614051]
[1743264828087,1e-05,1850.9,1850.8,15.614051]
[1743264828503,1e-05,1850.9,1850.8,12.614051]
[1743264828810,1e-05,1850.9,1850.8,11.834951]
[1743264829211,1e-05,1850.9,1850.8,6.671951]
[1743264830732,1e-05,1850.9,1850.8,5.40306]
[1743264832531,0.80621,1850.9,1850.8,5.40306]
[1743264839335,1e-05,1850.9,1850.8,5.45709003]
[1743264839851,1e-05,1850.9,1850.8,10.62008459]
[1743264840142,1e-05,1850.9,1850.8,11.87576]
[1743264840331,1e-05,1850.9,1850.8,13.603672]
[1743264844443,1e-05,1850.9,1850.8,16.603672]
[1743264845842,1e-05,1850.9,1850.8,17.0055868]
[1743264846042,1.1e-06,1851.3,1851.2,6.2148]
[1743264846246,1.1e-06,1851.3,1851.2,13.088489]
[1743264848218,1.1e-06,1851.3,1851.2,12.538489]
[1743264848948,1.1e-06,1851.3,1851.2,11.725589]
[1743264850831,1.1e-06,1851.3,1851.2,6.563589]
[1743264851024,1.1e-06,1851.3,1851.2,5.4019]
[1743264851223,0.8318011,1851.3,1851.2,5.4019]
[1743264851426,1.1e-06,1851.3,1851.2,5.4019]
[1743264851641,1.1e-06,1851.3,1851.2,5.45591173]
[1743264852455,1.1e-06,1851.3,1851.2,5.4019]
[1743264853025,1.1e-06,1851.3,1851.2,7.05241078]
[1743264857268,1.1e-06,1851.3,1851.2,7.86531078]
[1743264857642,1.1e-06,1851.3,1851.2,6.998399]
[1743264858442,1.1e-06,1851.3,1851.2,7.05240781]
[1743264858766,1.1e-06,1851.3,1851.2,6.998399]
[1743264859141,1.1e-06,1851.3,1851.2,7.05240484]
[1743264860767,1.1e-06,1851.3,1851.2,6.998399]
[1743264864240,1.1e-06,1851.3,1851.2,7.05240677]
[1743264865341,1.1e-06,1851.3,1851.2,5.4019]
[1743264871854,0.8183,1851.1,1850.3,6.23725]
[1743264872056,3.08643369,1850.9,1850.8,5.40283]
[1743264872395,0.8183,1850.8,1850.7,5.40335]
[1743264872692,0.8183,1850.7,1850.5,5.40382]
[1743264872996,3.08643369,1850.7,1850.6,5.40365]
[1743264874473,0.8183,1850.7,1850.6,5.40365]
[1743264875590,0.7891,1851.0,1850.9,5.40277]
[1743264876183,3.7891,1851.2,1851.0,5.40242]
[1743264876493,3.05723369,1851.2,1851.1,5.40219]
[1743264877276,0.7891,1851.1,1850.9,5.4026]
[1743264877479,2.26813369,1851.0,1850.9,5.4026]
[1743264877666,0.7891,1851.1,1851.0,5.40248]
[1743264878266,3.05723479,1851.3,1851.2,5.4019]
[1743264878668,3.05723479,1851.3,1851.1,5.40202]
[1743264878896,0.7891,1851.2,1851.1,5.40202]
[1743264880091,0.7891,1851.2,1851.0,5.40242]
[1743264880292,0.7891,1851.0,1850.9,5.40254]
[1743264880897,6.9091,1851.0,1850.8,5.40295]
[1743264881067,2.26813369,1850.9,1850.8,5.40295]
[1743264882298,9.17723369,1851.0,1850.9,5.40277]
[1743264885220,6.05723369,1851.0,1850.9,5.40277]
[1743264891945,6.05723369,1851.0,1850.8,5.40295]
[1743264892149,6.05723369,1851.0,1850.9,5.40277]
[1743264892640,6.05723369,1851.0,1850.8,5.40295]
[1743264892817,0.7851,1850.8,1850.6,5.40365]
[1743264893016,3.46017105,1850.8,1850.6,10.80715]
[1743264895544,6.46017105,1850.8,1850.7,5.40336]
[1743264896788,12.58017105,1850.8,1850.6,5.4035]
[1743264896958,12.58017105,1850.8,1850.4,5.40403]
[1743264896959,12.58017105,1850.8,1850.5,5.4039]
[1743264897375,12.58017105,1850.8,1850.5,10.80768]
[1743264897679,12.58017105,1850.8,1850.6,5.40364]
[1743264899170,12.58017105,1850.8,1850.5,10.80753]
[1743264899361,2.26813369,1850.6,1850.5,10.80753]
[1743264899686,2.26813369,1850.6,1850.5,5.40375]
[1743264903090,6.05323369,1850.6,1850.5,5.40375]
[1743264903287,6.05323369,1850.6,1850.4,5.40422]
[1743264904384,6.05323369,1850.6,1850.4,10.80825]
[1743264904901,6.05323369,1850.6,1850.5,5.40394]
[1743264905973,6.05323369,1850.6,1850.4,5.40403]
[1743264906803,6.05323369,1850.6,1850.4,10.80811]
[1743264907501,6.05323369,1850.6,1850.4,10.80807]
[1743264908505,12.17323369,1850.6,1850.4,10.80807]
[1743264908703,11.38813369,1850.6,1850.5,5.40394]
[1743264910567,11.38813369,1850.6,1850.4,5.40403]
[1743264911008,0.7702,1850.5,1850.3,5.40452]
[1743264911227,5.26813369,1850.4,1850.0,0.8202]
[1743264911518,5.26813369,1850.1,1849.9,5.40554]
[1743264911821,2.26813369,1850.4,1850.3,5.40452]
[1743264912272,8.38813369,1850.6,1850.5,5.40394]
[1743264912472,5.26813369,1850.6,1850.5,5.40394]
[1743264913479,2.26813369,1850.6,1850.5,6.22414]
[1743264915573,2.26813369,1850.6,1850.5,5.40394]
[1743264921416,3.05093369,1850.6,1850.5,5.40394]